fUSD/lending_fUSD_20240613
["ID","MTS","AMOUNT","RATE_DAILY","PERIOD"]
[329324836,1718245841037,-436.0,0.00025,8]
[329324839,1718245841056,-305.0,0.00025,2]
[329324840,1718245841094,-1277.92734148,0.00025,2]
[329324841,1718245841107,-1516.431654,0.00025,2]
[329324842,1718245841119,-2000.0,0.00025,2]
[329324844,1718245841130,-184.348572,0.00025,4]
[329324845,1718245841145,-150.0,0.00025,4]
[329324848,1718245841162,-319.9,0.00025,2]
[329324850,1718245841175,-4882.25,0.0002501,2]
[329324851,1718245841186,-2000.0,0.0002501,2]
[329324853,1718245841201,-2000.0,0.0002502,2]
[329324855,1718245841213,-155.25181517,0.00025026,2]
[329324858,1718245841231,-2000.0,0.0002503,2]
[329324859,1718245841242,-2526.482679,0.0002504,2]
[329324861,1718245841260,-2448.91,0.00025056,2]
[329324863,1718245841276,-187.74021355,0.00025073,2]
[329324866,1718245841320,-166.66666667,0.00025135,2]
[329324869,1718245841340,-155.77893772,0.00025171,2]
[329324871,1718245841352,-217.17577424,0.00025185,2]
[329324872,1718245841372,-156.44860812,0.00025196,2]
[329324874,1718245841388,-1617.56,0.00025205,2]
[329324875,1718245841408,-417.62,0.00025205,2]
[329324877,1718245841430,-1701.74,0.00025205,2]
[329324880,1718245841449,-417.62,0.00025205,2]
[329324882,1718245841462,-417.69,0.00025205,2]
[329324884,1718245841477,-1000.0,0.00025205,2]
[329324886,1718245841491,-243.0,0.0002521,2]
[329324888,1718245841512,-3008.53521326,0.00025233,2]
[329324890,1718245841535,-1152.0,0.00025259,2]
[329324893,1718245841549,-463.14741264,0.00025276,2]
[329324894,1718245841584,-187.74021355,0.00025288,2]
[329324897,1718245841606,-2512.0,0.000253,2]
[329324899,1718245841621,-541.0,0.000253,2]
[329324901,1718245841638,-156.53665849,0.0002536,2]
[329324902,1718245841651,-153.82049407,0.00025385,2]
[329324912,1718245841829,-187.74021355,0.0002539,2]
[329324914,1718245841843,-155.25181517,0.00025413,2]
[329324916,1718245841884,-217.17577424,0.00025436,2]
[329324917,1718245841897,-156.53665849,0.00025447,2]
[329324919,1718245841921,-187.74021355,0.00025448,2]
[329324921,1718245841944,-167.0,0.00025461,2]
[329324922,1718245841963,-156.10262242,0.00025464,2]
[329324924,1718245841977,-150.0,0.000255,4]
[329324925,1718245841992,-167.01,0.00025501,2]
[329324928,1718245842056,-717.62277869,0.00025529,2]
[329324929,1718245842068,-154.91680916,0.00025573,2]
[329324930,1718245842079,-158.46465584,0.00025611,2]
[329324931,1718245842105,-155.00389029,0.00025688,2]
[329324933,1718245842120,-155.00389029,0.00025712,2]
[329324935,1718245842136,-153.82049407,0.00025713,2]
[329324936,1718245842147,-156.10262242,0.0002576,2]
[329324938,1718245842164,-155.25181517,0.00025769,2]
[329324939,1718245842174,-3008.53521326,0.00025817,2]
[329324941,1718245842192,-165.49500725,0.00025825,2]
[329324942,1718245842215,-161.69710423,0.00025833,2]
[329324944,1718245842228,-161.69710423,0.0002584,2]
[329324945,1718245842249,-463.14741264,0.00025854,2]
[329324947,1718245842267,-156.53665849,0.00025863,2]
[329324949,1718245842294,-177.62,0.0002589,2]
[329324951,1718245842306,-300.0,0.0002589,2]
[329324953,1718245842318,-526.66,0.0002589,2]
[329324955,1718245842332,-164.28,0.0002589,2]
[329324957,1718245842356,-300.0,0.0002589,2]
[329324960,1718245842378,-150.0,0.0002589,2]
[329324962,1718245842392,-150.0,0.0002589,2]
[329324964,1718245842424,-353.61,0.0002589,2]
[329324966,1718245842437,-422.86,0.0002589,2]
[329324968,1718245842449,-150.0,0.0002589,2]
[329324969,1718245842461,-526.66,0.0002589,2]
[329324971,1718245842475,-150.0,0.0002589,2]
[329324973,1718245842487,-150.0,0.0002589,2]
[329324975,1718245842499,-164.28,0.0002589,2]
[329324978,1718245842515,-422.86,0.0002589,2]
[329324980,1718245842527,-150.0,0.0002589,2]
[329324982,1718245842544,-353.61,0.0002589,2]
[329324983,1718245842557,-526.76,0.0002589,2]
[329324985,1718245842569,-422.94,0.0002589,2]
[329324987,1718245842582,-329.94,0.0002589,2]
[329324989,1718245842603,-150.0,0.0002589,2]
[329324991,1718245842615,-150.0,0.0002589,2]
[329324993,1718245842627,-150.0,0.0002589,2]
[329324995,1718245842645,-353.67,0.0002589,2]
[329324997,1718245842663,-353.61,0.0002589,2]
[329324999,1718245842675,-150.0,0.0002589,2]
[329325001,1718245842688,-164.28,0.0002589,2]
[329325003,1718245842704,-151.0,0.00025909,2]
[329325004,1718245842729,-217.17577424,0.00025961,2]
[329325006,1718245842739,-22717.34421684,0.00026,5]
[329325008,1718245842756,-150.0,0.00026,4]
[329325012,1718245842774,-154.91680916,0.00026021,2]
[329325015,1718245842802,-187.74021355,0.00026043,2]
[329325016,1718245842816,-187.74021355,0.00026047,2]
[329325018,1718245842827,-217.17577424,0.00026059,2]
[329325020,1718245842840,-166.66666666,0.00026088,2]
[329325022,1718245842851,-243.0,0.0002615,2]
[329325024,1718245842862,-166.68931393,0.00026163,2]
[329325026,1718245842873,-832.06,0.00026164,2]
[329325028,1718245842888,-302.8,0.00026164,2]
[329325030,1718245842900,-155.25181517,0.0002618,2]
[329325033,1718245842932,-156.53665849,0.00026184,2]
[329325035,1718245842945,-155.25181517,0.00026184,2]
[329325039,1718245842977,-156.53665849,0.00026218,2]
[329325041,1718245843004,-158.46465584,0.00026227,2]
[329325043,1718245843029,-717.62277869,0.00026257,2]
[329325046,1718245843076,-217.17577424,0.0002632,2]
[329325047,1718245843091,-155.25181517,0.00026328,2]
[329325050,1718245843126,-187.74021355,0.00026391,2]
[329325052,1718245843142,-3008.53521326,0.000264,2]
[329325055,1718245843159,-154.91680916,0.00026424,2]
[329325057,1718245843183,-463.14741264,0.00026432,2]
[329325059,1718245843199,-361.36,0.00026474,2]
[329325061,1718245843217,-150.0,0.000265,5]
[329325063,1718245843230,-155.25181517,0.00026683,2]
[329325065,1718245843240,-1292.500781,0.00026712,7]
[329325067,1718245843255,-1292.500781,0.00026712,7]
[329325069,1718245843277,-151.0,0.00026712,7]
[329325071,1718245843296,-531.73,0.00026712,2]
[329325073,1718245843312,-152.48,0.00026712,2]
[329325076,1718245843331,-426.05,0.00026712,2]
[329325077,1718245843346,-153.0,0.00026712,2]
[329325082,1718245843372,-422.86,0.00026712,2]
[329325087,1718245843397,-150.0,0.00026712,2]
[329325091,1718245843416,-164.28,0.00026712,2]
[329325094,1718245843438,-150.0,0.00026712,2]
[329325098,1718245843455,-526.66,0.00026712,2]
[329325100,1718245843484,-353.61,0.00026712,2]
[329325103,1718245843500,-618.28,0.00026712,2]
[329325105,1718245843511,-186.33,0.00026712,2]
[329325108,1718245843541,-353.61,0.00026712,2]
[329325110,1718245843560,-150.0,0.00026712,2]
[329325113,1718245843572,-151.03,0.00026712,2]
[329325115,1718245843601,-526.66,0.00026712,2]
[329325116,1718245843613,-164.28,0.00026712,2]
[329325118,1718245843633,-526.66,0.00026712,2]
[329325119,1718245843660,-152.3,0.00026712,2]
[329325122,1718245843695,-353.61,0.00026712,2]
[329325125,1718245843715,-845.36,0.00026712,2]
[329325127,1718245843737,-167.01,0.00026712,2]
[329325129,1718245843753,-150.0,0.00026712,2]
[329325131,1718245843766,-535.0,0.00026712,2]
[329325133,1718245843780,-150.0,0.00026712,2]
[329325134,1718245843822,-164.28,0.00026712,2]
[329325136,1718245843836,-150.0,0.00026712,2]
[329325138,1718245843862,-359.48,0.00026712,2]
[329325141,1718245843880,-526.66,0.00026712,2]
[329325142,1718245843919,-164.28,0.00026712,2]
[329325145,1718245843933,-353.61,0.00026712,2]
[329325146,1718245843956,-150.0,0.00026712,2]
[329325149,1718245843970,-526.66,0.00026712,2]
[329325150,1718245843984,-150.0,0.00026712,2]
[329325152,1718245843996,-353.61,0.00026712,2]
[329325155,1718245844015,-164.28,0.00026712,2]
[329325157,1718245844040,-150.0,0.00026712,2]
[329325159,1718245844061,-164.28,0.00026712,2]
[329325161,1718245844082,-353.61,0.00026712,2]
[329325163,1718245844113,-150.0,0.00026712,2]
[329325165,1718245844128,-526.66,0.00026712,2]
[329325167,1718245844146,-518.49,0.00026712,2]
[329325169,1718245844158,-150.0,0.00026712,2]
[329325171,1718245844183,-150.0,0.00026712,2]
[329325173,1718245844201,-164.28,0.00026712,2]
[329325175,1718245844220,-353.61,0.00026712,2]
[329325176,1718245844242,-164.28,0.00026712,2]
[329325179,1718245844289,-353.61,0.00026712,2]
[329325182,1718245844324,-164.28,0.00026712,2]
[329325183,1718245844344,-816.45,0.00026712,2]
[329325185,1718245844359,-164.28,0.00026712,2]
[329325187,1718245844370,-164.28,0.00026712,2]
[329325189,1718245844381,-164.28,0.00026712,2]
[329325191,1718245844394,-164.28,0.00026712,2]
[329325193,1718245844405,-164.28,0.00026712,2]
[329325194,1718245844416,-164.28,0.00026712,2]
[329325196,1718245844427,-175.14973554,0.00026756,2]
[329325198,1718245844448,-178.71408499,0.000269,2]
[329325200,1718245844460,-442.26,0.00026923,2]
[329325202,1718245844472,-3008.53521326,0.00026983,2]
[329325203,1718245844489,-717.62277869,0.00026986,2]
[329325206,1718245844514,-7940.8424,0.00027,2]
[329325208,1718245844526,-2000.0,0.00027,2]
[329325211,1718245844558,-392.19131716,0.00027,2]
[329325213,1718245844576,-150.0,0.00027,5]
[329325215,1718245844588,-76.18010686,0.0002701,2]
[329325228,1718245844804,-1717.2,0.0002701,2]
[329325240,1718245845040,-311.36158167,0.0002701,2]
[329325246,1718245845128,-728.1,0.0002701,2]
[329325250,1718245845210,-781.28240647,0.0002701,2]
[329325253,1718245845229,-284.12986216,0.0002701,2]
[329325264,1718245845380,-179.01755048,0.0002701,2]
[329325266,1718245845391,-154.91680916,0.00027011,2]
[329325267,1718245845403,-469.3512,0.0002705,2]
[329325269,1718245845415,-243.0,0.0002708,2]
[329325272,1718245845428,-156.53665849,0.00027087,2]
[329325273,1718245845441,-217.17577424,0.00027173,2]
[329325276,1718245845457,-187.74021355,0.0002726,2]
[329325278,1718245845469,-150.0,0.0002726,2]
[329325280,1718245845486,-150.0,0.0002726,2]
[329325281,1718245845506,-150.0,0.0002726,2]
[329325283,1718245845517,-153.82049407,0.0002729,2]
[329325285,1718245845528,-217.17577424,0.00027355,2]
[329325287,1718245845539,-447.0,0.00027387,2]
[329325290,1718245845576,-861.801,0.00027387,2]
[329325292,1718245845587,-165.065,0.00027387,2]
[329325294,1718245845599,-151.454,0.00027387,2]
[329325296,1718245845611,-720.175,0.00027387,2]
[329325304,1718245845759,-546.0,0.00027387,2]
[329325306,1718245845802,-289.41,0.00027387,2]
[329325307,1718245845815,-5773.636,0.00027387,2]
[329325310,1718245845837,-5158.0,0.00027387,2]
[329325312,1718245845848,-38088.0,0.00027387,2]
[329325313,1718245845859,-1651.0,0.00027387,2]
[329325315,1718245845869,-445.007,0.00027387,2]
[329325317,1718245845886,-1830.0,0.00027387,2]
[329325319,1718245845897,-933.174,0.00027387,2]
[329325321,1718245845915,-150.0,0.00027397,2]
[329325322,1718245845926,-150.0,0.00027397,2]
[329325323,1718245845945,-178.12,0.00027397,2]
[329325324,1718245845983,-334.17574655,0.000274,2]
[329325326,1718245846012,-189.95,0.000274,2]
[329325328,1718245846025,-189.95,0.000274,2]
[329325330,1718245846037,-189.95,0.000274,2]
[329325332,1718245846051,-189.95,0.000274,2]
[329325334,1718245846064,-167.0,0.00027402,2]
[329325336,1718245846080,-187.74021355,0.00027425,2]
[329325338,1718245846107,-155.77893772,0.00027487,2]
[329325340,1718245846123,-156.44860813,0.00027497,2]
[329325342,1718245846133,-150.0,0.000275,5]
[329325344,1718245846150,-158.890655,0.00027515,2]
[329325346,1718245846163,-248.323188,0.00027515,2]
[329325348,1718245846189,-188.647897,0.00027515,2]
[329325350,1718245846210,-697.917617,0.00027515,2]
[329325353,1718245846232,-1013.676297,0.00027515,2]
[329325354,1718245846251,-228.441385,0.00027515,2]
[329325356,1718245846261,-178.820981,0.00027515,2]
[329325358,1718245846273,-166.930858,0.00027515,2]
[329325361,1718245846284,-150.0,0.00027534,2]
[329325363,1718245846294,-164.28,0.00027534,2]
[329325366,1718245846304,-1613.0,0.00027565,2]
[329325368,1718245846328,-3008.53521326,0.00027567,2]
[329325371,1718245846339,-463.14741264,0.00027588,2]
[329325374,1718245846356,-217.17577424,0.00027597,2]
[329325378,1718245846385,-153.82049407,0.00027598,2]
[329325380,1718245846402,-153.82049407,0.00027604,2]
[329325382,1718245846417,-217.17577424,0.00027645,2]
[329325385,1718245846433,-150.0,0.00027671,2]
[329325386,1718245846448,-717.62277869,0.00027714,2]
[329325389,1718245846460,-187.74021355,0.00027782,2]
[329325391,1718245846481,-189.95,0.00027785,2]
[329325394,1718245846516,-2448.91,0.00027795,2]
[329325397,1718245846541,-150.0,0.00027808,2]
[329325399,1718245846560,-151.15,0.00027808,2]
[329325402,1718245846571,-150.0,0.00027808,2]
[329325405,1718245846593,-155.25181517,0.00027846,2]
[329325408,1718245846632,-213.0,0.00027856,2]
[329325410,1718245846669,-254.74,0.00027856,2]
[329325412,1718245846688,-162.0,0.00027856,2]
[329325413,1718245846699,-162.143,0.00027856,2]
[329325415,1718245846715,-226.077,0.00027856,2]
[329325417,1718245846731,-195.435,0.00027856,2]
[329325419,1718245846744,-265.0,0.00027856,2]
[329325422,1718245846761,-259.831,0.00027856,2]
[329325424,1718245846773,-158.421,0.00027856,2]
[329325425,1718245846785,-277.59,0.00027856,2]
[329325427,1718245846812,-152.729,0.00027856,2]
[329325429,1718245846825,-225.496,0.00027856,2]
[329325430,1718245846836,-236.976,0.00027856,2]
[329325431,1718245846850,-182.936,0.00027856,2]
[329325432,1718245846876,-248.323188,0.00027858,2]
[329325434,1718245846896,-697.917617,0.00027858,2]
[329325437,1718245846936,-1013.676297,0.00027858,2]
[329325441,1718245846953,-228.441385,0.00027858,2]
[329325445,1718245846992,-187.74021355,0.00027873,2]
[329325448,1718245847007,-187.74021355,0.00027896,2]
[329325451,1718245847028,-150.0,0.00027945,2]
[329325454,1718245847040,-155.25181517,0.00027984,2]
[329325458,1718245847060,-156.53665849,0.00027991,2]
[329325463,1718245847081,-796.0,0.00028,60]
[329325467,1718245847124,-5000.0,0.00028,7]
[329325470,1718245847139,-1443.33986409,0.00028,30]
[329325474,1718245847156,-171.6862535,0.00028,21]
[329325477,1718245847171,-472.30835602,0.00028,2]
[329325479,1718245847182,-2006.71895972,0.00028,5]
[329325482,1718245847195,-1041.0,0.00028,10]
[329325486,1718245847211,-151.0,0.00028,7]
[329325488,1718245847221,-1204.94218696,0.00028,2]
[329325491,1718245847232,-169.27885675,0.00028,2]
[329325494,1718245847244,-150.0,0.00028,5]
[329325499,1718245847272,-320.53650672,0.00028,7]
[329325501,1718245847285,-2000.0,0.00028,30]
[329325505,1718245847297,-187.74021355,0.00028016,2]
[329325507,1718245847310,-243.0,0.0002802,2]
[329325512,1718245847322,-187.74021355,0.00028047,2]
[329325516,1718245847335,-156.53665849,0.00028048,2]
[329325522,1718245847350,-156.53665849,0.00028063,2]
[329325526,1718245847362,-187.74021355,0.00028064,2]
[329325531,1718245847377,-152.3468923,0.00028082,2]
[329325535,1718245847402,-270.34,0.00028082,2]
[329325538,1718245847416,-150.0,0.00028118,2]
[329325543,1718245847428,-3008.53521326,0.0002815,2]
[329325546,1718245847441,-463.14741264,0.00028166,2]
[329325551,1718245847454,-167.14186562,0.00028168,2]
[329325555,1718245847466,-1292.500781,0.00028202,7]
[329325559,1718245847488,-1292.500781,0.00028202,7]
[329325563,1718245847498,-248.323188,0.00028202,2]
[329325568,1718245847509,-697.917617,0.00028202,2]
[329325572,1718245847524,-1013.676297,0.00028202,2]
[329325576,1718245847536,-228.441385,0.00028202,2]
[329325578,1718245847547,-700.0,0.00028218,2]
[329325582,1718245847560,-187.74021355,0.00028261,2]
[329325585,1718245847570,-2000.0,0.000283,2]
[329325589,1718245847584,-2000.0,0.0002831,2]
[329325592,1718245847598,-2000.0,0.0002832,2]
[329325595,1718245847609,-156.53665849,0.0002832,2]
[329325600,1718245847621,-2000.0,0.0002833,2]
[329325605,1718245847650,-2877.365435,0.0002834,2]
[329325608,1718245847667,-150.61,0.00028408,2]
[329325612,1718245847728,-150.0,0.00028408,2]
[329325617,1718245847784,-150.0,0.00028408,2]
[329325620,1718245847795,-150.0,0.00028408,2]
[329325625,1718245847813,-150.0,0.00028408,2]
[329325629,1718245847826,-204.2749685,0.00028412,30]
[329325636,1718245847848,-717.62277869,0.00028443,2]
[329325640,1718245847870,-217.17577424,0.00028446,2]
[329325644,1718245847893,-217.17577424,0.00028463,2]
[329325649,1718245847909,-187.74021355,0.00028468,2]
[329325653,1718245847933,-156.10262242,0.0002849,2]
[329325656,1718245847945,-156.53665849,0.00028499,2]
[329325658,1718245847956,-163.96531221,0.000285,120]
[329325661,1718245847967,-150.0,0.000285,5]
[329325664,1718245847982,-155.25181517,0.00028536,2]
[329325668,1718245847995,-248.323188,0.00028546,2]
[329325671,1718245848010,-697.917617,0.00028546,2]
[329325674,1718245848023,-1013.676297,0.00028546,2]
[329325678,1718245848042,-228.441385,0.00028546,2]
[329325682,1718245848058,-155.9673023,0.00028587,2]
[329325684,1718245848086,-161.69710423,0.00028608,2]
[329325687,1718245848101,-217.17577424,0.00028658,2]
[329325688,1718245848119,-166.62458161,0.00028662,2]
[329325691,1718245848131,-1886.10433396,0.000287,2]
[329325694,1718245848142,-179.16051632,0.000287,2]
[329325696,1718245848154,-3008.53521326,0.00028733,2]
[329325699,1718245848167,-361.36,0.00028737,2]
[329325702,1718245848179,-463.14741264,0.00028744,2]
[329325705,1718245848191,-217.17577424,0.00028764,2]
[329325709,1718245848209,-700.0,0.00028766,2]
[329325712,1718245848226,-151.0,0.00028788,2]
[329325715,1718245848242,-161132.2520149,0.000288,2]
[329325718,1718245848254,-11673.72832066,0.000288,2]
[329325726,1718245848303,-3000.0,0.000288,2]
[329325730,1718245848324,-1292.500781,0.000288,7]
[329325735,1718245848366,-1292.500781,0.000288,7]
[329325739,1718245848394,-151.0,0.000288,7]
[329325743,1718245848409,-1886.10433395,0.00028809,2]
[329325747,1718245848429,-150.0,0.00028839,2]
[329325750,1718245848445,-155.00389029,0.00028854,2]
[329325755,1718245848473,-166.62458161,0.00028855,2]
[329325758,1718245848494,-248.323188,0.0002889,2]
[329325761,1718245848511,-697.917617,0.0002889,2]
[329325766,1718245848544,-1013.676297,0.0002889,2]
[329325771,1718245848592,-228.441385,0.0002889,2]
[329325775,1718245848613,-166.930858,0.0002889,2]
[329325777,1718245848636,-150.0,0.00028892,2]
[329325779,1718245848648,-1886.10433395,0.00028918,2]
[329325782,1718245848669,-243.0,0.0002895,2]
[329325784,1718245848680,-154.91680916,0.0002896,2]
[329325787,1718245848692,-152.0,0.00028985,3]
[329325789,1718245848707,-150.0,0.00028996,2]
[329325790,1718245848717,-165.31112428,0.00028999,2]
[329325792,1718245848734,-251.64476218,0.00029,2]
[329325795,1718245848745,-362.37236556,0.00029,2]
[329325797,1718245848757,-1033.25788507,0.00029,2]
[329325800,1718245848769,-2240.76558394,0.00029,3]
[329325802,1718245848781,-23011.83201115,0.00029,2]
[329325804,1718245848801,-714.81390363,0.00029,2]
[329325805,1718245848812,-2890.22556232,0.00029,2]
[329325807,1718245848829,-151.254647,0.00029,7]
[329325810,1718245848865,-1616.64125828,0.00029,2]
[329325812,1718245848882,-150.0,0.00029,6]
[329325815,1718245848911,-217.17577424,0.00029003,2]
[329325816,1718245848933,-29999.99,0.00029009,2]
[329325818,1718245848947,-4417.99,0.00029009,2]
[329325821,1718245848982,-14530.63,0.00029009,2]
[329325823,1718245849019,-9759.18,0.00029009,2]
[329325826,1718245849070,-1886.10433395,0.00029027,2]
[329325828,1718245849109,-851.39,0.00029041,2]
[329325830,1718245849127,-417.69,0.00029041,2]
[329325832,1718245849140,-851.39,0.00029041,2]
[329325834,1718245849168,-851.39,0.00029041,2]
[329325837,1718245849220,-417.69,0.00029041,2]
[329325839,1718245849235,-150.0,0.00029049,2]
[329325841,1718245849246,-166.62458161,0.00029063,2]
[329325842,1718245849267,-155.77893772,0.00029079,2]
[329325844,1718245849282,-204.15778694,0.00029095,2]
[329325846,1718245849294,-677.0,0.000291,2]
[329325848,1718245849307,-733.0,0.000291,2]
[329325850,1718245849320,-6177.20219874,0.000291,3]
[329325863,1718245849584,-209.08499402,0.00024999,2]
[329325865,1718245849607,-55.01873999,0.00024999,2]
[329325868,1718245849698,-1414.57909136,0.00024999,2]
[329325872,1718245849777,-1320.1000002,0.00024999,2]
[329325875,1718245849792,-535.75463978,0.00024999,2]
[329325877,1718245849810,-1134.83532094,0.00024999,2]
[329325893,1718245850110,-487.08180508,0.00024585,2]
[329325895,1718245850135,-12.91819492,0.00024998,2]
[329326704,1718246024880,135911.632,0.00014,2]
[329326705,1718246115578,180.69395492,0.00014,2]
[329326706,1718246221102,155.0,0.00014,2]
[329326707,1718246238680,1282.03712983,0.00014,2]
[329326711,1718246383692,150.81,0.00028,90]
[329326721,1718246868625,-1000.0,0.00014879,2]
[329326722,1718246868665,-429.97845481,0.0001488,2]
[329326723,1718246868699,-199.65435196,0.00014899,2]
[329326724,1718246868736,-150.0,0.00014899,2]
[329326725,1718246868772,-2937.04243634,0.000149,2]
[329326726,1718246868805,-49777.7223,0.000149,2]
[329326727,1718246868846,-215.42781805,0.0001499,2]
[329326728,1718246868884,-150.79,0.0001499,2]
[329326729,1718246868922,-150.79,0.0001499,2]
[329326730,1718246868968,-150.79,0.0001499,2]
[329326731,1718246869001,-7815.77173616,0.00014999,2]
[329326732,1718246869036,-1137022.03290268,0.00015,2]
[329326744,1718247032240,-518.04270749,0.00014998,2]
[329326745,1718247032253,-149.17262679,0.00014998,2]
[329326746,1718247032263,-300.0,0.00014999,2]
[329326747,1718247032273,-686.77441984,0.00015,2]
[329326748,1718247032380,-1495.889,0.00015,2]
[329326749,1718247032532,-789.29286824,0.00015,2]
[329326750,1718247032585,-259.37769393,0.00015,2]
[329326751,1718247032649,-600.96814387,0.00015,2]
[329326752,1718247032683,-27635.9657949,0.00015,2]
[329326753,1718247032933,-1356.52,0.00015,2]
[329326809,1718247038246,-1000.0,0.00014997,2]
[329326810,1718247038259,-174.7573991,0.00014997,2]
[329326811,1718247038561,-255.22105571,0.00014997,2]
[329326812,1718247038573,-6587.27894429,0.00015,2]
[329326813,1718247038593,-1225.92891502,0.00015,2]
[329326814,1718247038643,-29358.6861925,0.00015,2]
[329326815,1718247039205,-20020.76673865,0.00015,2]
[329326816,1718247039224,-347.1,0.00015,2]
[329326901,1718247041025,-4773.44374306,0.00015,2]
[329326903,1718247041038,-170.7902592,0.00015864,2]
[329326905,1718247041053,-2937.04243626,0.00016264,2]
[329326907,1718247041071,-499.99,0.00016264,2]
[329326909,1718247041087,-1633.55,0.00016264,2]
[329326911,1718247041101,-420.0,0.00016416,2]
[329326912,1718247041128,-237.72,0.00017258,2]
[329326914,1718247041151,-757.36579093,0.00017259,2]
[329326915,1718247041168,-2937.04243626,0.00017627,2]
[329326918,1718247041212,-587.0,0.00017966,2]
[329326920,1718247041229,-2937.04243626,0.00018991,2]
[329326921,1718247041241,-412.10198584,0.00019,2]
[329326923,1718247041259,-800.0,0.00019562,2]
[329326925,1718247041290,-800.0,0.00019562,2]
[329326926,1718247041321,-800.0,0.00019589,2]
[329326927,1718247041332,-300.0,0.00019625,2]
[329326928,1718247041351,-823.0,0.00019663,2]
[329326929,1718247041371,-397.92,0.0001967,2]
[329326930,1718247041387,-198.30447668,0.00019803,2]
[329326931,1718247041403,-548.88488712,0.0002,2]
[329326932,1718247041414,-155.0,0.0002,2]
[329326933,1718247041426,-313.76089755,0.0002,2]
[329326934,1718247041444,-2937.04243626,0.00020355,2]
[329326935,1718247041460,-1250.0,0.00021,2]
[329326937,1718247041474,-2058.37443448,0.000212,2]
[329326940,1718247041505,-250.0,0.00021388,2]
[329326942,1718247041523,-1152.0,0.0002152,2]
[329326944,1718247041542,-2937.04243626,0.00021718,2]
[329326946,1718247041558,-198.30447668,0.00021822,2]
[329326948,1718247041570,-150.0,0.00021875,2]
[329326951,1718247041587,-250.0,0.00021918,2]
[329326952,1718247041600,-397.92,0.00021933,2]
[329326954,1718247041615,-14316.13,0.00021952,2]
[329326956,1718247041628,-155.49,0.00021994,2]
[329326958,1718247041650,-791.16188927,0.00022,2]
[329326960,1718247041666,-547.92,0.00022159,2]
[329326962,1718247041683,-547.92,0.0002222,2]
[329326964,1718247041704,-547.92,0.0002228,2]
[329326965,1718247041716,-547.92,0.00022341,2]
[329326968,1718247041732,-800.0,0.00022384,2]
[329326970,1718247041748,-231.99,0.00022395,2]
[329326971,1718247041763,-547.92,0.00022402,2]
[329326973,1718247041774,-547.92,0.00022463,2]
[329326975,1718247041786,-177.95,0.00022474,2]
[329326976,1718247041797,-547.92,0.00022523,2]
[329326978,1718247041808,-376.9,0.0002254,2]
[329326980,1718247041819,-547.92,0.00022584,2]
[329326982,1718247041839,-547.92,0.00022645,2]
[329326984,1718247041854,-547.92,0.00022706,2]
[329326985,1718247041865,-151.97,0.00022765,2]
[329326987,1718247041877,-547.92,0.00022766,2]
[329326988,1718247041891,-547.92,0.00022827,2]
[329326990,1718247041911,-547.92,0.00022888,2]
[329326992,1718247041924,-547.92,0.00022949,2]
[329326993,1718247041945,-1300.0,0.00023,2]
[329326996,1718247041959,-547.92,0.00023009,2]
[329326998,1718247041973,-547.92,0.0002307,2]
[329327000,1718247041987,-2937.04243626,0.00023082,2]
[329327002,1718247042006,-547.92,0.00023131,2]
[329327004,1718247042023,-547.92,0.00023192,2]
[329327006,1718247042036,-547.92,0.00023253,2]
[329327008,1718247042050,-547.92,0.00023313,2]